bitfinex-derivatives/quotes_BNBF0:USTF0_20250810
["timestamp","ask_amount","ask_price","bid_price","bid_amount"]
[1754827856483,1.12112292,797.42,795.98,1.11542632]
[1754827856881,1.12112292,797.42,796.9,0.21805468]
[1754827857081,1.12112292,797.4,796.0,1.11542632]
[1754827857380,1.12112292,797.43,796.94,0.21805399]
[1754827857579,1.12112292,797.43,796.01,1.11542632]
[1754827857781,1.12112292,797.43,796.98,0.21805126]
[1754827857981,1.12112292,797.43,796.01,1.11542632]
[1754827858286,1.12112292,797.42,797.02,0.21805126]
[1754827858484,1.12112292,797.43,797.02,0.21805126]
[1754827858781,1.12112292,797.44,796.1,0.5]
[1754827858982,1.12112292,797.43,797.06,0.2180458]
[1754827859183,1.12112292,797.36,796.22,1.11542632]
[1754827859394,1.12112292,797.39,797.09,0.2180253]
[1754827859784,1.12112292,797.39,796.25,1.11542632]
[1754827859983,1.12112292,797.39,797.11,0.21802257]
[1754827860187,1.12112292,797.39,796.25,1.11542632]
[1754827860485,1.12112292,797.39,797.13,0.21802257]
[1754827860685,1.12112292,797.43,796.22,1.11542632]
[1754827860883,1.12112292,797.43,797.15,0.2180294]
[1754827861089,1.12112292,797.45,797.15,0.2180294]
[1754827861289,1.12112292,797.45,796.21,1.11542632]
[1754827861788,1.12112292,797.47,796.51,0.21802804]
[1754827862391,1.12112292,797.48,796.51,0.21802804]
[1754827865193,1.12112292,797.5,796.51,0.21802804]
[1754827865792,1.12112292,797.52,796.51,0.21802804]
[1754827868790,1.12112292,797.5,796.51,0.21802804]
[1754827869995,1.12112292,797.51,796.51,0.21802804]
[1754827870893,1.12112292,797.5,796.51,0.21802804]
[1754827871794,1.12112292,797.49,796.51,0.21802804]
[1754827872996,1.12112292,797.51,796.51,0.21802804]
[1754827873498,1.12112292,797.5,796.51,0.21802804]
[1754827874199,1.12112292,797.49,796.51,0.21802804]
[1754827874498,1.12112292,797.5,796.51,0.21802804]
[1754827875092,2.80567565,798.35,796.51,0.21802804]
[1754827875093,1.12112292,797.48,796.51,0.21802804]
[1754827875599,1.12112292,797.46,796.51,0.21802804]
[1754827875799,1.12112292,797.48,796.51,0.21802804]
[1754827879001,1.12112292,797.47,796.51,0.21802804]
[1754827879203,1.12112292,797.48,796.51,0.21802804]
[1754827880206,1.12112292,797.53,796.51,0.21802804]
[1754827880406,1.12112292,797.52,796.51,0.21802804]
[1754827880606,1.12112292,797.51,796.51,0.21802804]
[1754827880808,1.12112292,797.52,796.51,0.21802804]
[1754827881106,1.12112292,797.51,796.51,0.21802804]
[1754827881306,1.12112292,797.52,796.51,0.21802804]
[1754827881608,1.12112292,797.63,796.51,0.21802804]
[1754827882305,1.12112292,797.64,796.51,0.21802804]
[1754827882811,1.12112292,797.63,796.51,0.21802804]
[1754827883710,1.12112292,797.62,796.51,0.21802804]
[1754827884010,1.12112292,797.6,796.51,0.21802804]
[1754827884210,1.12112292,797.59,796.51,0.21802804]
[1754827884407,1.12112292,797.54,796.51,0.21802804]
[1754827885008,1.12112292,797.48,796.51,0.21802804]
[1754827885511,1.12112292,797.47,796.51,0.21802804]
[1754827885712,1.12112292,797.45,796.51,0.21802804]
[1754827885913,1.12112292,797.43,796.51,0.21802804]
[1754827886813,1.12112292,797.41,796.51,0.21802804]
[1754827887109,1.12112292,797.66,796.51,0.21802804]
[1754827889313,1.12112292,797.67,796.51,0.21802804]
[1754827889516,1.12112292,797.66,796.51,0.21802804]
[1754827890519,1.12112292,797.64,796.51,0.21802804]
[1754827890719,1.12112292,797.62,796.51,0.21802804]
[1754827891619,1.12112292,797.47,796.51,0.21802804]
[1754827893326,1.12112292,797.46,796.51,0.21802804]
[1754827893626,1.12112292,797.5,796.51,0.21802804]
[1754827893821,1.12112292,797.51,796.51,0.21802804]
[1754827894024,1.12112292,797.5,796.51,0.21802804]
[1754827894222,1.12112292,797.51,796.51,0.21802804]
[1754827894425,1.12112292,797.5,796.51,0.21802804]
[1754827896125,1.12112292,797.28,796.51,0.21802804]
[1754827896422,1.12112292,797.3,796.51,0.21802804]
[1754827897320,1.12112292,797.29,796.51,0.21802804]
[1754827898326,1.12112292,797.27,796.51,0.21802804]
[1754827898523,1.12112292,797.35,796.51,0.21802804]
[1754827899421,1.12112292,797.34,796.51,0.21802804]
[1754827899621,1.12112292,797.33,796.51,0.21802804]
[1754827899821,1.12112292,797.31,796.51,0.21802804]
[1754827900232,1.12112292,797.23,796.51,0.21802804]
[1754827900826,1.12112292,797.29,796.51,0.21802804]
[1754827901128,1.12112292,797.32,796.51,0.21802804]
[1754827901423,1.12112292,797.31,796.51,0.21802804]
[1754827901723,1.12112292,797.33,796.51,0.21802804]
[1754827903227,1.12112292,797.32,796.51,0.21802804]
[1754827904528,1.12112292,797.31,796.51,0.21802804]
[1754827905227,1.12112292,797.33,796.51,0.21802804]
[1754827905826,1.12112292,797.35,796.51,0.21802804]
[1754827906527,1.12112292,797.34,796.51,0.21802804]
[1754827908232,1.12112292,797.33,796.51,0.21802804]
[1754827909336,1.12112292,797.3,796.51,0.21802804]
[1754827910335,1.12112292,797.31,796.51,0.21802804]
[1754827910936,1.12112292,797.3,796.51,0.21802804]
[1754827911442,1.12112292,797.29,796.51,0.21802804]
[1754827912537,1.12112292,797.27,796.51,0.21802804]
[1754827913041,1.12112292,797.26,796.51,0.21802804]
[1754827913337,1.12112292,797.23,796.51,0.21802804]
[1754827913536,1.12112292,797.22,796.51,0.21802804]
[1754827913741,1.12112292,797.23,796.51,0.21802804]
[1754827914441,1.12112292,797.21,796.51,0.21802804]
[1754827914940,1.12112292,797.19,796.51,0.21802804]
[1754827915739,1.12112292,797.21,796.51,0.21802804]
[1754827916241,1.12112292,797.22,796.51,0.21802804]
[1754827916738,1.12112292,797.21,796.51,0.21802804]
[1754827916940,1.12112292,797.19,796.51,0.21802804]
[1754827920644,1.12112292,797.21,796.51,0.21802804]
[1754827921544,1.12112292,797.36,796.51,0.21802804]
[1754827922245,1.12112292,797.35,796.51,0.21802804]
[1754827923249,1.12112292,797.22,796.51,0.21802804]
[1754827923550,1.12112292,797.23,796.51,0.21802804]
[1754827923947,1.12112292,797.2,796.51,0.21802804]
[1754827924461,1.12112292,797.21,796.51,0.21802804]
[1754827925346,1.12112292,797.22,796.51,0.21802804]
[1754827925852,1.12112292,797.18,796.51,0.21802804]
[1754827926154,1.12112292,797.15,796.51,0.21802804]
[1754827926451,1.12112292,797.17,796.51,0.21802804]
[1754827926650,1.12112292,797.14,796.51,0.21802804]
[1754827927552,1.12112292,797.15,795.89,1.11542632]
[1754827927949,1.12112292,797.15,796.57,0.21813737]
[1754827928148,1.12112292,797.15,795.89,1.11542632]
[1754827928452,1.12112292,797.16,795.88,1.11542632]
[1754827929154,1.12112292,797.14,795.89,1.11542632]
[1754827929353,1.12112292,797.15,796.19,0.21813737]
[1754827929953,1.12112292,797.14,796.19,0.21813737]
[1754827930455,1.12112292,797.15,796.19,0.21813737]
[1754827930755,1.12112292,797.17,796.19,0.21813737]
[1754827931456,1.12112292,797.18,796.19,0.21813737]
[1754827931657,1.12112292,796.96,796.19,0.21813737]
[1754827931950,1.12112292,796.92,796.19,0.21813737]
[1754827932154,1.12112292,796.96,796.19,0.21813737]
[1754827932655,1.12112292,797.03,796.19,0.21813737]
[1754827932954,1.12112292,797.04,796.19,0.21813737]
[1754827934454,1.12112292,797.03,796.19,0.21813737]
[1754827934655,1.12112292,796.97,796.19,0.21813737]
[1754827934952,1.12112292,796.96,796.19,0.21813737]
[1754827935751,1.12112292,796.98,796.19,0.21813737]
[1754827936355,1.12112292,796.99,796.19,0.21813737]
[1754827939956,1.12112292,796.97,796.19,0.21813737]
[1754827940251,1.12112292,796.91,796.19,0.21813737]
[1754827940457,0.21812712,798.25,796.19,0.21813737]
[1754827940458,1.12112292,796.89,796.19,0.21813737]
[1754827941458,1.12112292,796.9,796.19,0.21813737]
[1754827941754,1.12112292,796.93,796.19,0.21813737]
[1754827942354,1.12112292,796.92,796.19,0.21813737]
[1754827942654,1.12112292,796.91,796.19,0.21813737]
[1754827943458,1.12112292,796.92,796.19,0.21813737]
[1754827944059,1.12112292,796.88,796.19,0.21813737]
[1754827944554,0.21812712,798.25,796.19,0.21813737]
[1754827944555,1.12112292,796.89,796.19,0.21813737]
[1754827945253,1.68168439,797.04,796.19,0.21813737]
[1754827945254,1.12112292,796.9,796.19,0.21813737]
[1754827946258,1.12112292,796.91,796.19,0.21813737]
[1754827947260,1.12112292,796.92,796.19,0.21813737]
[1754827948361,1.12112292,796.93,796.19,0.21813737]
[1754827949362,1.12112292,796.94,796.19,0.21813737]
[1754827949856,1.12112292,796.92,796.19,0.21813737]
[1754827950057,1.12112292,796.9,796.19,0.21813737]
[1754827950459,1.12112292,796.91,796.19,0.21813737]
[1754827950762,1.12112292,796.9,796.19,0.21813737]
[1754827951462,1.12112292,796.91,796.19,0.21813737]
[1754827951663,1.12112292,796.92,796.19,0.21813737]
[1754827952258,1.12112292,796.91,796.19,0.21813737]
[1754827952664,1.12112292,796.98,796.19,0.21813737]
[1754827953362,1.12112292,797.24,796.19,0.21813737]
[1754827953665,1.12112292,797.26,796.19,0.21813737]
[1754827954266,1.12112292,797.29,796.19,0.21813737]
[1754827954466,1.12112292,797.27,796.19,0.21813737]
[1754827955161,1.12112292,797.28,796.19,0.21813737]
[1754827955467,1.12112292,797.26,796.19,0.21813737]
[1754827956361,1.12112292,797.25,796.19,0.21813737]
[1754827956567,1.12112292,797.24,796.19,0.21813737]
[1754827956767,1.12112292,797.23,796.19,0.21813737]
[1754827957367,1.12112292,797.21,796.19,0.21813737]
[1754827957568,1.12112292,797.18,796.19,0.21813737]
[1754827957964,1.12112292,797.04,796.19,0.21813737]
[1754827958267,1.12112292,797.02,796.19,0.21813737]
[1754827961269,1.12112292,796.97,796.19,0.21813737]
[1754827962271,1.12112292,796.96,796.19,0.21813737]
[1754827962571,1.12112292,796.97,796.19,0.21813737]
[1754827963368,1.12112292,796.96,796.19,0.21813737]
[1754827964275,1.12112292,796.95,796.19,0.21813737]
[1754827964875,1.12112292,796.96,796.19,0.21813737]
[1754827965172,2.80567565,797.73,796.19,0.21813737]
[1754827965173,1.12112292,796.95,796.19,0.21813737]
[1754827965369,1.12112292,796.94,796.19,0.21813737]
[1754827966475,1.12112292,796.91,796.19,0.21813737]
[1754827967276,1.12112292,796.9,796.19,0.21813737]
[1754827967775,1.12112292,796.87,796.19,0.21813737]
[1754827967978,1.12112292,796.86,796.19,0.21813737]
[1754827968373,1.12112292,796.85,796.19,0.21813737]
[1754827968778,1.12112292,796.88,796.19,0.21813737]
[1754827968978,1.12112292,796.86,796.19,0.21813737]
[1754827969379,1.12112292,796.83,796.19,0.21813737]
[1754827970276,1.12112292,796.8,796.19,0.21813737]
[1754827970480,1.12112292,796.74,796.19,0.21813737]
[1754827970779,1.12112292,796.72,796.19,0.21813737]
[1754827970980,1.12112292,796.69,796.19,0.21813737]
[1754827971375,1.12112292,796.87,796.19,0.21813737]
[1754827971579,1.12112292,796.93,796.19,0.21813737]
[1754827971777,2.80567565,798.09,796.19,0.21813737]
[1754827971778,1.12112292,796.99,796.19,0.21813737]
[1754827971980,1.12112292,796.95,796.19,0.21813737]
[1754827972381,1.12112292,796.96,796.19,0.21813737]
[1754827972582,1.12112292,796.93,796.19,0.21813737]
[1754827973078,1.12112292,796.88,796.19,0.21813737]
[1754827973278,1.12112292,796.87,796.19,0.21813737]
[1754827973582,1.12112292,796.89,796.19,0.21813737]
[1754827974278,1.12112292,796.88,796.19,0.21813737]
[1754827974482,1.12112292,796.89,796.19,0.21813737]
[1754827974678,1.12112292,796.7,796.19,0.21813737]
[1754827974978,1.12112292,796.62,796.19,0.21813737]
[1754827975482,1.12112292,796.63,796.19,0.21813737]
[1754827976278,1.12112292,796.61,796.19,0.21813737]
[1754827976477,1.12112292,796.63,796.19,0.21813737]
[1754827976777,1.12112292,796.65,796.19,0.21813737]
[1754827977176,1.12112292,796.64,796.19,0.21813737]
[1754827977681,1.12112292,796.65,796.19,0.21813737]
[1754827978183,1.12112292,796.64,796.19,0.21813737]
[1754827978380,1.12112292,796.65,796.19,0.21813737]
[1754827979080,1.12112292,796.76,796.19,0.21813737]
[1754827979283,1.12112292,796.75,796.19,0.21813737]
[1754827979583,1.12112292,796.76,796.19,0.21813737]
[1754827979884,1.12112292,796.73,796.19,0.21813737]
[1754827980083,1.12112292,796.72,796.19,0.21813737]
[1754827980584,1.12112292,796.74,796.19,0.21813737]
[1754827980780,3.92794591,798.03,796.19,0.21813737]
[1754827980781,1.12112292,796.93,796.19,0.21813737]
[1754827980980,1.12112292,796.96,796.19,0.21813737]
[1754827981785,1.12112292,796.81,796.19,0.21813737]
[1754827982186,1.12112292,796.79,796.19,0.21813737]
[1754827982384,1.12112292,796.78,796.19,0.21813737]
[1754827982885,1.12112292,796.77,796.19,0.21813737]
[1754827983380,1.12112292,796.78,796.19,0.21813737]
[1754827984280,1.12112292,796.8,796.19,0.21813737]
[1754827988189,1.12112292,796.78,796.19,0.21813737]
[1754827988683,1.12112292,796.79,796.19,0.21813737]
[1754827988886,1.12112292,796.78,796.19,0.21813737]
[1754827989582,1.12112292,796.79,796.19,0.21813737]
[1754827991385,1.12112292,796.78,796.19,0.21813737]
[1754827991585,1.12112292,796.74,796.19,0.21813737]
[1754827992290,1.12112292,796.73,796.19,0.21813737]
[1754827993289,1.12112292,796.72,796.19,0.21813737]
[1754827993985,1.12112292,796.71,796.19,0.21813737]
[1754827996290,1.12112292,796.7,796.19,0.21813737]
[1754827997392,1.12112292,796.69,796.19,0.21813737]
[1754827997593,1.12112292,796.72,796.19,0.21813737]
[1754827998089,1.12112292,796.73,796.19,0.21813737]
[1754827998288,1.12112292,796.72,796.19,0.21813737]
[1754827998989,1.12112292,796.67,796.19,0.21813737]
[1754827999289,1.12112292,796.68,796.19,0.21813737]
[1754827999488,1.12112292,796.67,796.19,0.21813737]
[1754828001494,1.12112292,796.68,796.19,0.21813737]
[1754828004793,2.80567565,797.5,796.19,0.21813737]
[1754828004794,1.12112292,796.67,796.19,0.21813737]
[1754828005296,1.12112292,796.66,796.19,0.21813737]
[1754828005501,1.12112292,796.69,796.19,0.21813737]
[1754828007399,1.12112292,796.64,796.19,0.21813737]
[1754828008305,1.12112292,796.63,796.19,0.21813737]
[1754828009504,1.12112292,796.62,796.19,0.21813737]
[1754828009910,1.12112292,796.63,796.19,0.21813737]
[1754828010905,1.12112292,796.65,796.19,0.21813737]
[1754828013311,1.12112292,796.64,796.19,0.21813737]
[1754828013508,1.12112292,796.62,796.19,0.21813737]
[1754828013908,1.12112292,796.6,796.19,0.21813737]
[1754828014112,1.12112292,796.57,796.19,0.21813737]
[1754828014313,1.12112292,796.54,796.19,0.21813737]
[1754828014612,1.12112292,796.53,796.19,0.21813737]
[1754828014808,1.12112292,796.54,796.19,0.21813737]
[1754828015012,1.12112292,796.53,796.19,0.21813737]
[1754828015313,1.12112292,796.51,796.19,0.21813737]
[1754828015513,1.12112292,796.5,796.19,0.21813737]
[1754828016310,1.12112292,796.48,796.19,0.21813737]
[1754828017315,1.12112292,796.47,796.19,0.21813737]
[1754828017513,1.12112292,796.46,796.19,0.21813737]
[1754828018515,1.12112292,796.45,796.19,0.21813737]
[1754828018712,1.12112292,796.41,796.19,0.21813737]
[1754828018916,1.12112292,796.42,796.19,0.21813737]
[1754828019412,1.12112292,796.41,796.19,0.21813737]
[1754828020411,1.12112292,796.4,796.19,0.21813737]
[1754828021613,1.12112292,796.52,796.19,0.21813737]
[1754828022116,3.92794591,797.43,796.19,0.21813737]
[1754828022117,1.12112292,796.58,796.19,0.21813737]
[1754828023314,1.12112292,796.92,796.19,0.21813737]
[1754828023515,1.12112292,796.84,796.19,0.21813737]
[1754828024316,1.12112292,796.81,796.19,0.21813737]
[1754828024818,1.12112292,796.8,796.19,0.21813737]
[1754828026122,1.12112292,796.74,796.19,0.21813737]
[1754828026322,1.12112292,796.73,796.19,0.21813737]
[1754828027519,1.12112292,796.72,796.19,0.21813737]
[1754828027824,1.12112292,796.63,796.19,0.21813737]
[1754828028122,1.12112292,796.48,796.19,0.21813737]
[1754828028320,3.92794591,798.14,796.19,0.21813737]
[1754828028321,1.12112292,796.45,796.19,0.21813737]
[1754828028521,1.12112292,796.48,796.19,0.21813737]
[1754828029321,1.12112292,796.55,796.19,0.21813737]
[1754828030521,1.12112292,796.54,796.19,0.21813737]
[1754828031325,1.12112292,796.55,796.19,0.21813737]
[1754828031522,1.12112292,796.54,796.19,0.21813737]
[1754828031822,1.12112292,796.4,796.19,0.21813737]
[1754828032921,1.12112292,796.41,796.19,0.21813737]
[1754828035125,1.12112292,796.48,796.19,0.21813737]
[1754828036022,1.12112292,796.51,796.19,0.21813737]
[1754828036423,1.12112292,796.5,796.19,0.21813737]
[1754828038925,2.80567565,797.44,796.19,0.21813737]
[1754828038926,1.12112292,796.49,796.19,0.21813737]
[1754828039520,1.12112292,796.48,796.19,0.21813737]
[1754828040323,1.12112292,796.5,796.19,0.21813737]
[1754828041630,1.12112292,796.53,796.19,0.21813737]
[1754828042431,0.21812712,798.25,796.19,0.21813737]
[1754828042432,1.12112292,796.54,796.19,0.21813737]
[1754828043029,1.12112292,796.47,796.19,0.21813737]
[1754828043728,1.12112292,796.45,796.19,0.21813737]
[1754828043931,1.12112292,796.44,796.19,0.21813737]
[1754828044129,1.12112292,796.45,796.19,0.21813737]
[1754828048334,1.12112292,796.44,796.19,0.21813737]
[1754828048637,1.12112292,796.45,796.19,0.21813737]
[1754828049832,1.12112292,796.44,796.19,0.21813737]
[1754828050237,1.12112292,796.43,796.19,0.21813737]
[1754828050536,1.12112292,796.42,796.19,0.21813737]
[1754828051437,1.12112292,796.41,796.19,0.21813737]
[1754828051935,1.12112292,796.42,796.19,0.21813737]
[1754828052239,1.12112292,796.4,796.19,0.21813737]
[1754828052438,1.12112292,796.32,796.19,0.21813737]
[1754828052838,1.12112292,796.31,796.19,0.21813737]
[1754828053335,1.12112292,796.32,796.19,0.21813737]
[1754828053736,1.12112292,796.31,796.19,0.21813737]
[1754828054333,1.12112292,796.34,796.19,0.21813737]
[1754828054738,1.12112292,796.32,796.19,0.21813737]
[1754828054937,1.12112292,796.31,796.19,0.21813737]
[1754828055340,1.12112292,796.32,796.19,0.21813737]
[1754828055841,1.12112292,796.31,796.19,0.21813737]
[1754828056040,1.12112292,796.41,796.19,0.21813737]
[1754828056335,1.12112292,796.42,796.19,0.21813737]
[1754828057140,2.80567565,797.54,796.19,0.21813737]
[1754828057141,1.12112292,796.43,796.19,0.21813737]
[1754828060243,1.12112292,796.44,796.19,0.21813737]
[1754828060442,1.12112292,796.32,796.19,0.21813737]
[1754828061142,1.12112292,796.33,796.19,0.21813737]
[1754828061345,1.12112292,796.31,796.19,0.21813737]
[1754828061545,1.12112292,796.44,796.19,0.21813737]
[1754828061743,1.12112292,796.43,796.19,0.21813737]
[1754828062046,1.12112292,796.44,796.19,0.21813737]
[1754828063147,2.80567565,797.41,796.19,0.21813737]
[1754828063148,1.12112292,796.42,796.19,0.21813737]
[1754828063845,1.12112292,796.36,796.19,0.21813737]
[1754828064048,1.12112292,796.32,796.19,0.21813737]
[1754828064251,1.12112292,796.33,796.19,0.21813737]
[1754828064747,1.12112292,796.32,796.19,0.21813737]
[1754828067151,1.12112292,796.33,796.19,0.21813737]
[1754828067452,1.12112292,796.32,796.19,0.21813737]
[1754828068055,1.12112292,796.35,796.19,0.21813737]
[1754828069855,1.12112292,796.36,796.19,0.21813737]
[1754828070054,1.12112292,796.35,796.19,0.21813737]
[1754828070856,1.12112292,796.34,796.19,0.21813737]
[1754828071355,1.12112292,796.33,796.19,0.21813737]
[1754828071756,1.12112292,796.22,796.19,0.21813737]
[1754828072856,1.12112292,796.21,796.19,0.21813737]
[1754828073157,1.12112292,796.22,796.19,0.21813737]
[1754828073457,1.12112292,796.34,796.19,0.21813737]
[1754828077162,1.12112292,796.35,796.19,0.21813737]
[1754828078062,1.12112292,796.36,796.19,0.21813737]
[1754828078763,1.12112292,796.52,796.19,0.21813737]
[1754828078967,1.12112292,796.51,796.19,0.21813737]
[1754828080061,1.12112292,796.52,796.19,0.21813737]
[1754828081765,1.12112292,796.5,796.19,0.21813737]
[1754828081964,1.12112292,796.48,796.19,0.21813737]
[1754828082361,1.12112292,796.47,796.19,0.21813737]
[1754828083676,1.12112292,796.48,796.19,0.21813737]
[1754828083877,1.12112292,796.51,796.19,0.21813737]
[1754828084066,1.12112292,796.47,796.19,0.21813737]
[1754828084270,1.12112292,796.49,796.19,0.21813737]
[1754828084468,1.12112292,796.55,796.19,0.21813737]
[1754828084679,1.12112292,796.64,796.19,0.21813737]
[1754828084967,1.68168439,796.85,796.19,0.21813737]
[1754828084968,1.12112292,796.77,796.19,0.21813737]
[1754828085275,1.12112292,796.85,796.19,0.21813737]
[1754828086268,1.12112292,796.86,796.19,0.21813737]
[1754828087468,1.12112292,796.85,796.19,0.21813737]
[1754828087974,1.12112292,796.83,796.19,0.21813737]
[1754828088270,1.12112292,796.8,796.19,0.21813737]
[1754828089271,1.12112292,796.81,796.19,0.21813737]
[1754828089572,1.12112292,796.85,796.19,0.21813737]
[1754828090274,1.12112292,796.84,796.19,0.21813737]
[1754828090469,1.12112292,796.81,796.19,0.21813737]
[1754828091869,1.12112292,796.8,796.19,0.21813737]
[1754828092071,1.12112292,796.65,796.19,0.21813737]
[1754828092268,1.12112292,796.69,796.19,0.21813737]
[1754828092670,1.12112292,796.7,796.19,0.21813737]
[1754828093174,1.12112292,796.8,796.19,0.21813737]
[1754828094273,1.12112292,796.81,796.19,0.21813737]
[1754828095274,1.12112292,796.83,796.19,0.21813737]
[1754828096273,1.12112292,796.84,796.19,0.21813737]
[1754828097275,1.12112292,796.85,796.19,0.21813737]
[1754828098375,1.12112292,796.91,796.19,0.21813737]
[1754828099076,1.12112292,796.92,796.19,0.21813737]
[1754828099274,1.12112292,796.93,796.19,0.21813737]
[1754828101074,1.12112292,796.89,796.19,0.21813737]
[1754828101774,1.12112292,797.14,796.19,0.21813737]
[1754828102179,1.12112292,797.14,795.76,1.11542632]
[1754828102374,1.12112292,797.15,795.76,1.11542632]
[1754828102678,1.12112292,797.15,796.1,0.21814421]
[1754828103378,1.12112292,797.17,796.1,0.21814421]
[1754828103579,1.12112292,797.19,796.1,0.21814421]
[1754828104275,1.12112292,797.2,796.1,0.21814421]
[1754828105380,1.12112292,797.21,796.1,0.21814421]
[1754828106380,1.12112292,797.2,796.1,0.21814421]
[1754828106781,1.12112292,797.17,796.1,0.21814421]
[1754828106977,1.12112292,797.02,796.1,0.21814421]
[1754828108082,1.12112292,797.04,796.1,0.21814421]
[1754828108284,2.80567565,797.74,796.1,0.21814421]
[1754828108285,1.12112292,796.99,796.1,0.21814421]
[1754828110084,1.12112292,796.97,796.1,0.21814421]
[1754828110383,1.12112292,796.98,796.1,0.21814421]
[1754828110580,1.12112292,796.94,796.1,0.21814421]
[1754828110780,1.12112292,796.91,796.1,0.21814421]
[1754828111784,1.12112292,796.81,796.1,0.21814421]
[1754828112582,1.12112292,796.79,796.1,0.21814421]
[1754828112782,1.12112292,796.78,796.1,0.21814421]
[1754828113787,1.12112292,796.77,796.1,0.21814421]
[1754828114389,1.12112292,796.8,796.1,0.21814421]
[1754828115184,1.12112292,796.81,796.1,0.21814421]
[1754828115383,1.12112292,796.8,796.1,0.21814421]
[1754828115583,1.12112292,796.81,796.1,0.21814421]
[1754828115787,1.12112292,796.84,796.1,0.21814421]
[1754828115987,1.12112292,796.86,796.1,0.21814421]
[1754828117383,1.12112292,796.85,796.1,0.21814421]
[1754828117584,1.12112292,796.88,796.1,0.21814421]
[1754828118488,1.12112292,796.86,796.1,0.21814421]
[1754828119285,1.12112292,796.85,796.1,0.21814421]
[1754828120691,1.12112292,796.83,796.1,0.21814421]
[1754828120888,1.12112292,796.82,796.1,0.21814421]
[1754828121491,1.12112292,796.81,796.1,0.21814421]
[1754828121889,1.12112292,796.8,796.1,0.21814421]
[1754828122193,1.12112292,796.79,796.1,0.21814421]
[1754828123093,1.12112292,796.77,796.1,0.21814421]
[1754828123393,1.12112292,796.78,796.1,0.21814421]
[1754828124293,1.12112292,796.75,796.1,0.21814421]
[1754828125189,1.12112292,796.74,796.1,0.21814421]
[1754828125492,1.12112292,796.73,796.1,0.21814421]
[1754828126394,1.12112292,796.72,796.1,0.21814421]
[1754828126589,1.12112292,796.74,796.1,0.21814421]
[1754828126989,2.80567565,797.55,796.1,0.21814421]
[1754828126990,1.12112292,796.75,796.1,0.21814421]
[1754828127288,1.12112292,796.69,796.1,0.21814421]
[1754828128195,1.12112292,796.68,796.1,0.21814421]
[1754828129391,1.12112292,796.66,796.1,0.21814421]
[1754828131198,1.12112292,796.65,796.1,0.21814421]
[1754828131498,1.12112292,796.64,796.1,0.21814421]
[1754828132297,1.12112292,796.63,796.1,0.21814421]
[1754828133097,1.12112292,796.64,796.1,0.21814421]
[1754828133397,1.12112292,796.63,796.1,0.21814421]
[1754828133798,1.12112292,796.62,796.1,0.21814421]
[1754828134300,1.12112292,796.61,796.1,0.21814421]
[1754828134799,1.12112292,796.62,796.1,0.21814421]
[1754828135295,1.12112292,796.6,796.1,0.21814421]
[1754828136195,1.12112292,796.59,796.1,0.21814421]
[1754828136504,1.12112292,796.55,796.1,0.21814421]
[1754828136800,1.12112292,796.77,796.1,0.21814421]
[1754828137196,1.12112292,796.75,796.1,0.21814421]
[1754828137600,1.12112292,796.77,796.1,0.21814421]
[1754828137802,1.12112292,796.83,796.1,0.21814421]
[1754828138201,1.12112292,796.72,796.1,0.21814421]
[1754828138706,1.12112292,796.73,796.1,0.21814421]
[1754828139002,1.12112292,796.72,796.1,0.21814421]
[1754828139505,1.12112292,796.71,796.1,0.21814421]
[1754828139703,1.12112292,796.72,796.1,0.21814421]
[1754828140507,1.12112292,796.74,796.1,0.21814421]
[1754828141208,1.12112292,796.81,796.1,0.21814421]
[1754828141904,1.12112292,796.8,796.1,0.21814421]
[1754828143205,1.12112292,796.82,796.1,0.21814421]
[1754828145507,1.12112292,796.83,796.1,0.21814421]
[1754828146108,1.12112292,796.84,796.1,0.21814421]
[1754828146313,1.12112292,796.83,796.1,0.21814421]
[1754828146507,1.12112292,796.82,796.1,0.21814421]
[1754828147208,1.12112292,796.81,796.1,0.21814421]
[1754828147408,1.12112292,796.83,796.1,0.21814421]
[1754828148311,1.12112292,796.84,796.1,0.21814421]
[1754828148711,1.12112292,796.82,796.1,0.21814421]
[1754828149214,1.12112292,796.83,796.1,0.21814421]
[1754828150915,2.80567565,797.56,796.1,0.21814421]
[1754828150916,1.12112292,797.16,796.1,0.21814421]
[1754828151216,3.92794591,797.86,796.1,0.21814421]
[1754828151217,1.12112292,797.2,796.1,0.21814421]
[1754828151417,1.12112292,797.21,796.1,0.21814421]
[1754828151917,1.12112292,797.37,796.1,0.21814421]
[1754828152415,1.12112292,797.36,796.1,0.21814421]
[1754828153320,1.12112292,797.37,796.1,0.21814421]
[1754828155317,1.12112292,797.38,796.1,0.21814421]
[1754828156317,1.12112292,797.39,796.1,0.21814421]
[1754828158325,1.12112292,797.4,796.1,0.21814421]
[1754828160324,1.12112292,797.41,796.1,0.21814421]
[1754828160621,1.12112292,797.22,796.1,0.21814421]
[1754828160825,1.12112292,797.29,796.1,0.21814421]
[1754828161025,1.12112292,797.34,796.1,1.33357053]
[1754828161422,1.12112292,797.47,796.1,0.21814421]
[1754828161725,1.12112292,797.48,796.1,0.21814421]
[1754828161922,1.12112292,797.35,796.1,0.21814421]
[1754828162326,1.12112292,797.36,796.1,0.21814421]
[1754828162625,1.12112292,797.38,796.1,0.21814421]
[1754828163224,1.12112292,797.37,796.1,0.21814421]
[1754828163624,1.12112292,797.36,796.1,0.21814421]
[1754828163923,1.12112292,797.37,796.1,0.21814421]